Workbook

Sheet Bridge CA YTD (2)
A1: Société
A2: RO
A3: Période | B3: =+[1]Feuil10!D7 -> 2
A4: Mois | B4: =+[1]Feuil10!C7 -> Octobre
C6: Mth | U6: YTD
C7: CA TOTAL | D7: RESULTAT BRUT D'EXPLOITATION | G7: =+C7 -> CA TOTAL | H7: =+D7 -> RESULTAT BRUT D'EXPLOITATION | K7: =+G7 -> CA TOTAL | L7: =+H7 -> RESULTAT BRUT D'EXPLOITATION | U7: CA TOTAL | V7: RESULTAT BRUT D'EXPLOITATION | Y7: =+U7 -> CA TOTAL | Z7: =+V7 -> RESULTAT BRUT D'EXPLOITATION | AC7: =+Y7 -> CA TOTAL | AD7: =+Z7 -> RESULTAT BRUT D'EXPLOITATION
C8: N-1 | G8: B21 | K8: Actual | O8: Actual vs B21 | R8: Actual vs N-1 | U8: N-1 | Y8: B21 | AC8: Actual | AG8: Actual vs B21 | AJ8: Actual vs N-1
C9: CA | D9: RBE | E9: % RBE | G9: CA | H9: RBE | I9: % RBE | K9: CA | L9: RBE | M9: % RBE | O9: CA | P9: RBE | R9: CA | S9: RBE | U9: CA | V9: RBE | W9: % RBE | Y9: CA | Z9: RBE | AA9: % RBE | AC9: CA | AD9: RBE | AE9: % RBE | AG9: CA | AH9: RBE | AJ9: CA | AK9: RBE
B10: DA FS | C10: 219 | D10: 41 | E10: =+D10/C10 -> 19% | G10: 195 | H10: 29 | I10: =+H10/G10 -> 15% | K10: 202 | L10: 31 | M10: =+L10/K10 -> 15% | O10: =+K10-G10 -> 8 | P10: 2 | R10: =+K10-C10 -> -17 | S10: -10 | U10: 219 | V10: 41 | W10: =+V10/U10 -> 19% | Y10: 195 | Z10: 29 | AA10: =+Z10/Y10 -> 15% | AC10: 202 | AD10: 31 | AE10: =+AD10/AC10 -> 15% | AG10: =+AC10-Y10 -> 8 | AH10: 2 | AJ10: =+AC10-U10 -> -17 | AK10: -10
B11: - Distri auto | C11: 100 | D11: 20 | E11: 20% | G11: 150 | H11: 30 | I11: 20% | K11: 200 | L11: 35 | M11: 18% | O11: 50 | P11: 5 | R11: 100 | S11: 15 | U11: =+C11*2 -> 200 | V11: =+D11*2 -> 40 | W11: 20% | Y11: =+G11*2 -> 300 | Z11: =+H11*2 -> 60 | AA11: 20% | AC11: =+K11*2 -> 400 | AD11: =+L11*2 -> 70 | AE11: 18% | AG11: 100 | AH11: 10 | AJ11: 200 | AK11: 30
B12: - Fourn & Serv | C12: 150 | D12: 25 | E12: 17% | G12: 100 | H12: 25 | I12: 25% | K12: 140 | L12: 30 | M12: 21% | O12: 40 | P12: 5 | R12: -10 | S12: 5 | U12: =+C12*2 -> 300 | V12: 50 | W12: 17% | Y12: 200 | Z12: 50 | AA12: 25% | AC12: 280 | AD12: 60 | AE12: 21% | AG12: 80 | AH12: 10 | AJ12: -20 | AK12: 10
R19: Analyse %
C20: Y Label | D20: X | E20: Y | F20: Ends | G20: NegBlank | H20: NegLoss | I20: NegGain | J20: PosBlank | K20: PosLoss | L20: PosGain | M20: Y Label | R20: Exceptionnel | S20: =+'[1]LLA détail'!U108 -> -2
A21: B21 | B21: =+H10 -> 29 | C21: =IF(ISBLANK(B21),F21,B21) -> 29 | D21: 2 | E21: =SUM(B$21:B21) -> 29 | F21: =E21 -> 29 | M21: =MAX(0,F21) -> 29 | R21: CA sup | S21: =+'[1]LLA détail'!U100 -> 0.4679905298
A22: =+R22 -> % conso | B22: =+S22 -> -8 | C22: -8 | D22: =D21+1 -> 3 | E22: =SUM(B$21:B22) -> 21 | G22: =IF(AND(E22<0,E21<0,F22=0),MAX(E21:E22),0) -> 0 | H22: =IF(AND(E22<0,B22<0),MAX(B22,E22),0) -> 0 | I22: =IF(AND(E21<0,B22>0),MAX(-B22,E21),0) -> 0 | J22: =IF(AND(E22>0,E21>0,F22=0),MIN(E21:E22),0) -> 21 | K22: =IF(AND(E21>0,B22<0),MIN(-B22,E21),0) -> 8 | L22: =IF(AND(E22>0,B22>0),MIN(B22,E22),0) -> 0 | M22: =MAX(IF(F22>0,0,E21),E22) -> 29 | R22: % conso | S22: =+'[1]LLA détail'!U101 -> -7.618314271
A23: =+R23 -> % FP | B23: 14 | C23: 14 | D23: 4 | E23: =SUM(B$21:B23) -> 35 | G23: 0 | H23: 0 | I23: 0 | J23: 21 | K23: 0 | L23: 14 | M23: 35 | R23: % FP | S23: =+'[1]LLA détail'!U102 -> 13.9360802
A24: % AC | B24: -4 | C24: -4 | D24: 5 | E24: =SUM(B$21:B24) -> 32 | G24: 0 | H24: 0 | I24: 0 | J24: 32 | K24: 4 | L24: 0 | M24: 35 | R24: % AC | S24: =+'[1]LLA détail'!U104 -> -3.751044614 | V24: % amort | W24: =+'[1]LLA détail'!U103 -> 0.9153088739
A25: 0 | B25: 0 | C25: 0 | D25: 6 | E25: =SUM(B$21:B25) -> 32 | G25: 0 | H25: 0 | I25: 0 | J25: 32 | K25: 0 | L25: 0 | M25: 32 | V25: % créance | W25: =+'[1]LLA détail'!U105 -> 0.00411757
A26: 0 | B26: 0 | C26: 0 | D26: 7 | E26: =SUM(B$21:B26) -> 32 | G26: 0 | H26: 0 | I26: 0 | J26: 32 | K26: 0 | L26: 0 | M26: 32
A27: =+R25 -> 0 | B27: =+W25 -> 0 | C27: 0 | D27: 8 | E27: =SUM(B$21:B27) -> 32 | G27: 0 | H27: 0 | I27: 0 | J27: 32 | K27: 0 | L27: 0 | M27: 32
A28: 0 | B28: 0 | C28: 0 | D28: 9 | E28: =SUM(B$21:B28) -> 32 | G28: 0 | H28: 0 | I28: 0 | J28: 32 | K28: 0 | L28: 0 | M28: 32
A29: =+R27 -> 0 | B29: 0 | C29: 0 | D29: 10 | E29: =SUM(B$21:B29) -> 32 | G29: 0 | H29: 0 | I29: 0 | J29: 32 | K29: 0 | L29: 0 | M29: 32
A30: (+) Autres | B30: =ROUND(B36-SUM(B21:B29),1) -> -1 | C30: -1 | D30: 11 | E30: =SUM(B$21:B30) -> 31 | G30: 0 | H30: 0 | I30: 0 | J30: 31 | K30: 1 | L30: 0 | M30: 32
A31: Réel | C31: 31 | D31: =D30 -> 11 | E31: =SUM(B$21:B31) -> 31 | F31: =E30 -> 31 | G31: 0 | H31: 0 | I31: 0 | J31: 0 | K31: 0 | L31: 0 | M31: 31
A36: Réel | B36: =+L10 -> 31
B38: =B36-SUM(B21:B30) -> -0.0
C80: Y Label | D80: X | E80: Y | F80: Ends | G80: NegBlank | H80: NegLoss | I80: NegGain | J80: PosBlank | K80: PosLoss | L80: PosGain | M80: Y Label
A81: B21 | B81: =+S29 -> 0 | C81: =IF(ISBLANK(B81),F81,B81) -> 0 | D81: 2 | E81: =SUM(B$21:B81) -> 62 | F81: =E81 -> 62 | M81: =MAX(0,F81) -> 62
A82: =+R80 -> 0 | B82: =+W80 -> 0 | C82: 0 | D82: =D81+1 -> 3 | E82: =SUM(B$21:B82) -> 62 | G82: =IF(AND(E82<0,E81<0,F82=0),MAX(E81:E82),0) -> 0 | H82: =IF(AND(E82<0,B82<0),MAX(B82,E82),0) -> 0 | I82: =IF(AND(E81<0,B82>0),MAX(-B82,E81),0) -> 0 | J82: =IF(AND(E82>0,E81>0,F82=0),MIN(E81:E82),0) -> 62 | K82: =IF(AND(E81>0,B82<0),MIN(-B82,E81),0) -> 0 | L82: =IF(AND(E82>0,B82>0),MIN(B82,E82),0) -> 0 | M82: =MAX(IF(F82>0,0,E81),E82) -> 62
A83: =+R81 -> 0 | B83: =+W81 -> 0 | C83: 0 | D83: 4 | E83: =SUM(B$21:B83) -> 62 | G83: 0 | H83: 0 | I83: 0 | J83: 62 | K83: 0 | L83: 0 | M83: 62
A84: 0 | B84: 0 | C84: 0 | D84: 5 | E84: =SUM(B$21:B84) -> 62 | G84: 0 | H84: 0 | I84: 0 | J84: 62 | K84: 0 | L84: 0 | M84: 62
A85: 0 | B85: 0 | C85: 0 | D85: 6 | E85: =SUM(B$21:B85) -> 62 | G85: 0 | H85: 0 | I85: 0 | J85: 62 | K85: 0 | L85: 0 | M85: 62
A86: 0 | B86: 0 | C86: 0 | D86: 7 | E86: =SUM(B$21:B86) -> 62 | G86: 0 | H86: 0 | I86: 0 | J86: 62 | K86: 0 | L86: 0 | M86: 62
A87: 0 | B87: 0 | C87: 0 | D87: 8 | E87: =SUM(B$21:B87) -> 62 | G87: 0 | H87: 0 | I87: 0 | J87: 62 | K87: 0 | L87: 0 | M87: 62
A88: 0 | B88: 0 | C88: 0 | D88: 9 | E88: =SUM(B$21:B88) -> 62 | G88: 0 | H88: 0 | I88: 0 | J88: 62 | K88: 0 | L88: 0 | M88: 62
A89: =+R87 -> 0 | B89: 0 | C89: 0 | D89: 10 | E89: =SUM(B$21:B89) -> 62 | G89: 0 | H89: 0 | I89: 0 | J89: 62 | K89: 0 | L89: 0 | M89: 62
A90: (+) Autres | B90: =ROUND(B96-SUM(B81:B89),1) -> 0 | C90: 0 | D90: 11 | E90: =SUM(B$21:B90) -> 62 | G90: 0 | H90: 0 | I90: 0 | J90: 62 | K90: 0 | L90: 0 | M90: 62
A91: Réel | C91: 62 | D91: =D90 -> 11 | E91: =SUM(B$21:B91) -> 62 | F91: =E90 -> 62 | G91: 0 | H91: 0 | I91: 0 | J91: 0 | K91: 0 | L91: 0 | M91: 62
A96: Réel | B96: =+U29 -> 0
B98: =B96-SUM(B81:B90) -> 0.0
